Cogmind - Beta 15 @@@ ROGUE MODE // 2025.07.30 @ 10:44:09 Player: FenRhew Result: Destroyed by P-70 Sage with Tesla Rifle Performance ------------- Evolutions (6) 3000 Regions Visited (12) 2400 Robots Destroyed (241) 1205 Value Destroyed (8764) 8764 Prototype IDs (20) 400 Alien Tech Used (0) 0 Bonus (1915) 1915 TOTAL SCORE: 17684 Bonus ------- High Alert Combat Kills 89 Follower Combat Kills 1510 Network Hubs Disabled 400 A7 Reached Mainframe 300 Friendly Fire -384 Cogmind --------- Core Integrity 0/1150 Matter 2/300 Energy 94/100 System Corruption 19% Temperature Cool (0) Movement Core (50) Location -4/Factory Parts ------- > --- POWER (1) -------- (None) > --- PROPULSION (5) --- Centrium Wheel > --- UTILITY (9) ------ Advanced Signal Interpreter Melee Analysis Suite Improved Melee Analysis Suite System Shield > --- WEAPON (4) ------- (None) > --- INVENTORY (5) ---- Advanced Cryofiber Web Advanced Heat Sink Improved Coolant Injector Tesla Rifle Micro-nuke Launcher Peak State ------------ > --- POWER ------------ Micro Fission Core > --- PROPULSION ------- Improved VSS Leg Antigrav System Antigrav System Antigrav System Antigrav System > --- UTILITY ---------- Advanced Cryofiber Web Advanced Heat Sink Improved Cooling System Medium Storage Unit Improved Sensor Array Advanced Signal Interpreter Long-range Terrain Scanner Experimental Targeting Computer Improved Target Analyzer > --- WEAPON ----------- Field Laser Thermic Laser Wave Gun Proton Cannon > --- INVENTORY -------- Light Antimatter Reactor Light Antimatter Reactor Advanced Heat Sink Large Storage Unit Heavy Gauss Cannon Micro-nuke Launcher Phasing Sabre [Rating: 101] Favorites ----------- Power Nuclear Core Engine Light Angular Momentum Engine Power Core Nuclear Core Reactor Light Antimatter Reactor Propulsion Light Treads Treads Light Treads Leg Carbon-fiber Leg Wheel Centrium Wheel Hover Unit Antigrav System Flight Unit VTOL Module Utility Hacking Suite Device Advanced Heat Sink Storage Medium Storage Unit Processor Enhanced Optical Array Hackware Hacking Suite Protection Centrium Medium Armor Plating Weapon Enhanced Autogun Energy Gun Advanced Beam Rifle Energy Cannon Cooled Plasma Cannon Ballistic Gun Enhanced Autogun Ballistic Cannon Advanced Assault Cannon Launcher Rocket Array Special Weapon Improved Plasma Cutter Slashing Weapon Phasing Sabre Build | -11 -10 -9 -8 -7 -7 -6 -6 -6 -6 -6 -5 -4 ------- Run | Yrd Mat Mat Mat Fac Sto Fac Ext Cet Arc Hub Fac Fac Slots Evolved 12 | . . 2 2 2 . 2 . . . . 2 2 Power . | . . . . . . . . . . . . . Propulsion 3 | . . 1 . . . 2 . . . . . . Utility 7 | . . 1 1 2 . . . . . . 2 1 Weapon 2 | . . . 1 . . . . . . . . 1 Parts Attached 253 | 8 2 15 27 13 14 17 29 5 5 32 31 55 Power 24 | 1 . 2 3 2 2 1 2 . 1 1 5 4 Engine 11 | 1 . 1 1 2 2 . 1 . 1 . 1 1 Core 9 | . . 1 2 . . 1 1 . . . 3 1 Reactor 4 | . . . . . . . . . . 1 1 2 Propulsion 89 | 3 . 5 5 4 4 11 8 1 2 19 10 17 Treads 24 | 2 . 5 5 3 4 . . . 1 4 . . Leg 23 | . . . . . . . 8 1 . 8 3 3 Wheel 2 | 1 . . . . . . . . . . . 1 Hover 33 | . . . . 1 . 11 . . 1 7 . 13 Flight 7 | . . . . . . . . . . . 7 . Utility 73 | 2 1 3 7 3 6 2 8 1 . 9 10 21 Device 26 | 1 . . 3 . 1 . 2 . . 3 5 11 Storage 8 | 1 1 . . 1 . 1 1 . . 1 1 1 Processor 17 | . . . 1 1 . 1 . . . 5 3 6 Hackware 6 | . . 1 . 1 . . 2 . . . . 2 Protection 16 | . . 2 3 . 5 . 3 1 . . 1 1 Artifact . | . . . . . . . . . . . . . Weapon 67 | 2 1 5 12 4 2 3 11 3 2 3 6 13 Energy Gun 21 | . . 2 5 1 . . 6 2 . . . 5 Energy Cannon 12 | . . . 1 . . . . . . 3 3 5 Ballistic Gun 14 | 2 1 2 3 1 . . 1 1 2 . 1 . Ballistic Cannon 7 | . . . . . 1 2 2 . . . . 2 Launcher 8 | . . 1 3 1 1 1 . . . . . 1 Special Weapon 1 | . . . . . . . . . . . 1 . Impact Weapon . | . . . . . . . . . . . . . Slashing Weapon 4 | . . . . 1 . . 2 . . . 1 . Piercing Weapon . | . . . . . . . . . . . . . Special Melee Weapon . | . . . . . . . . . . . . . Unidentified Prototypes 16 | . . 1 4 . 2 1 . 1 . 5 1 1 Parts Lost 111 | . . 5 7 2 2 . 14 8 2 15 7 49 Power 8 | . . 1 1 1 . . 1 . 1 . . 3 Propulsion 44 | . . 2 1 1 . . 5 2 1 6 5 21 Utility 28 | . . . 4 . 1 . 2 1 . 5 1 14 Weapon 31 | . . 2 1 . 1 . 6 5 . 4 1 11 Highest Loss Streak 14 | . . 2 4 1 1 . 5 7 2 12 4 14 To Critical Strikes 3 | . . . . . . . . 2 . 1 . . Average Backups 13 | 4 8 21 23 19 19 10 9 7 9 9 5 8 Power 1 | . 1 2 2 1 1 . . 1 . . 1 1 Propulsion 2 | 2 3 4 5 5 6 1 1 . . . . . Utility 5 | . 1 8 7 5 6 4 4 3 5 6 1 3 Weapon 4 | . 2 5 8 6 5 3 2 2 4 1 2 3 Tool/Special . | . . . . . . . . . . . . . Unused Backups 49 | . . 9 6 11 3 4 2 . . 8 1 5 Power 6 | . . 1 1 1 . . . . . 2 . 1 Propulsion 7 | . . 2 . 3 . 1 . . . 1 . . Utility 21 | . . 3 . 4 3 1 2 . . 4 1 3 Weapon 14 | . . 2 5 3 . 2 . . . 1 . 1 Tool/Special 1 | . . 1 . . . . . . . . . . Average Slot Usage (%) 94 | . 100 98 99 99 99 98 96 87 92 96 85 83 Engine 3 | . 14 8 4 2 7 . 1 6 5 2 . . Core 2 | . . 2 4 4 . 5 4 . . . 3 2 Treads 12 | . 28 32 27 22 23 1 . . 3 1 4 . Leg 5 | . . . . . . . 7 23 21 26 5 5 Hover 6 | . . . . . . 31 23 . 1 4 . 10 Flight 2 | . . . . . . . . . . . 16 2 Device 7 | . 14 4 8 7 6 1 . 6 6 5 12 12 Storage 6 | . 14 11 9 7 7 6 6 6 6 5 1 4 Processor 11 | . . . 1 6 7 10 13 13 13 17 26 19 Hackware 7 | . . 10 9 14 15 13 11 6 6 1 . 3 Protection 5 | . . 6 7 7 7 6 7 6 6 6 3 3 Energy Gun 4 | . . . 9 7 7 1 8 8 10 . . 6 Energy Cannon 2 | . . . . . . . . . . 11 4 5 Ballistic Gun 9 | . 28 21 15 14 12 2 1 5 8 7 1 1 Ballistic Cannon 1 | . . . . . 1 15 7 1 . . . . Peak Build Rating 101 | 9 10 21 39 44 50 65 67 62 64 91 89 101 Average Rating 53 | 5 9 17 32 42 45 59 62 53 57 78 72 83 On Entrance 39 | . 9 10 18 38 44 46 65 62 57 64 30 72 Naked Turns . | . . . . . . . . . . . . . Heaviest Build 109 | 14 90 99 109 104 79 79 45 44 40 58 60 73 Greatest Support 116 | 20 40 63 62 62 62 82 95 85 60 116 48 55 Greatest Overweight (x) 4 | . 2 1 1 1 1 . 1 . 1 1 2 4 Average Overweight (x) . | . . 1 1 . . . . . . . . . Largest Inventory Capacity 25 | 8 25 25 25 25 20 20 10 10 10 10 15 15 Average Capacity 15 | 7 15 25 25 20 20 10 10 10 10 9 8 10 Most Carried 25 | 6 11 25 25 25 20 19 10 10 10 10 12 12 Average Carried 13 | 4 8 21 23 19 19 9 9 7 9 9 6 8 Final Capacity 25 | 8 25 25 25 20 20 10 10 10 10 5 15 5 Final Carried 25 | 6 11 25 25 20 20 10 10 7 10 5 12 5 Class Distribution -------------------- 29% | Scavenger-Gunner 18% | Hacker-Gunner 13% | Mutant 9% | Scavenger-Mutant 7% | Scavenger-Scout 7% | Scavenger-Tank 6% | Scavenger-Skirmisher 3% | Scout Dominant Class ---------------- Mutant | -10/Materials Mutant | -9/Materials Scavenger-Tank | -8/Materials Hacker-Gunner | -7/Factory Hacker-Gunner | -7/Storage Hacker-Gunner | -6/Factory Scavenger-Gunner | -6/Extension Scavenger-Mutant | -6/Cetus Scavenger-Gunner | -6/Archives Scavenger-Gunner | -6/Hub_04(d) Scout | -5/Factory Scavenger-Scout | -4/Factory Resources | -11 -10 -9 -8 -7 -7 -6 -6 -6 -6 -6 -5 -4 ----------- Run | Yrd Mat Mat Mat Fac Sto Fac Ext Cet Arc Hub Fac Fac Matter Collected 7400 | 230 226 727 721 783 519 565 1431 254 100 727 437 680 Remotely . | . . . . . . . . . . . . . Salvage Created 9707 | 24 260 1224 1326 1176 797 367 901 148 76 1129 735 1544 Parts 468 | 2 24 83 72 49 36 17 41 1 7 51 29 56 Haulers Intercepted 22 | . 2 3 6 1 4 1 . . . 2 1 2 Recyclers Shooed 5 | . . . 2 . . . 2 . . . . 1 Parts Field Recycled . | . . . . . . . . . . . . . Retrieved Matter . | . . . . . . . . . . . . . Parts Self-Destructed . | . . . . . . . . . . . . . Prevented . | . . . . . . . . . . . . . Kills | -11 -10 -9 -8 -7 -7 -6 -6 -6 -6 -6 -5 -4 ------- Run | Yrd Mat Mat Mat Fac Sto Fac Ext Cet Arc Hub Fac Fac Combat Hostiles Destroyed 170 | . 5 21 25 21 12 12 21 3 . 14 10 26 Melee 10 | . . . . . . . 2 . . . 6 2 Guns 83 | . 5 19 20 17 5 . 6 1 . 2 2 6 Cannons 40 | . . . . . 4 5 4 1 . 12 2 12 AOE 34 | . . 2 5 4 3 7 9 . . . . 4 Classes Destroyed 17 | 1 5 4 2 1 . . 2 . . 1 . 1 Worker 7 | . . . 1 1 . 2 . . . 3 . . Builder 7 | . . 3 1 . . . 2 . . . . 1 Tunneler 1 | 1 . . . . . . . . . . . . Hauler 22 | . 2 3 6 1 4 1 . . . 2 1 2 Recycler 5 | . . 1 . 1 1 . 1 . . . 1 . Operator 6 | . 1 1 . . 2 . . . 2 . . . Watcher 18 | . 1 3 2 1 1 1 2 . . . 2 5 Swarmer 45 | . 3 4 7 3 3 4 10 . . . 6 5 Cutter 2 | . . . . . . . . . . . . 2 Grunt 74 | . 2 11 13 14 5 6 7 1 . 5 3 7 Duelist 2 | . . 1 . . . . . . . 1 . . Sentry 21 | . . 5 4 2 3 1 2 . . 3 . 1 Specialist 4 | . . . . . . . . . . 2 . 2 Hunter 3 | . . . 1 . . . . . . 2 . . Programmer 15 | . . . . 2 1 1 . . . 1 1 9 Behemoth 2 | . . . . . . . 2 . . . . . Cetus Guard 2 | . . . . . . . . 2 . . . . Savage 2 | . . . . . . . 2 . . . . . Butcher 1 | . . . . . . . 1 . . . . . Guerrilla 2 | . . . . . . . 2 . . . . . Best Kill Streak 8 | 1 5 6 7 7 6 6 5 2 2 4 4 8 Combat Bots Only 8 | . 3 4 7 6 3 4 5 2 . 4 4 8 Max Kills in Single Turn 5 | 1 2 5 4 5 5 3 4 1 1 2 1 3 Gunslinging 1 | . . . 1 . . . . . . . . . Exploded 4 | . . 2 2 4 3 2 3 . . . . 3 Melee 1 | . . . . . . . 1 . . . 1 1 Uniques/NPCs Destroyed . | . . . . . . . . . . . . . Combat | -11 -10 -9 -8 -7 -7 -6 -6 -6 -6 -6 -5 -4 -------- Run | Yrd Mat Mat Mat Fac Sto Fac Ext Cet Arc Hub Fac Fac Hostile Shots Fired 1610 | . 20 109 163 130 131 70 319 37 10 189 57 375 Missed 537 | . 7 25 45 48 47 31 138 13 2 66 18 97 Hits 1073 | . 13 84 118 82 84 39 181 24 8 123 39 278 Melee 34 | . . 14 . . . . 1 . . 2 . 17 Projectile 1039 | . 13 70 118 82 84 39 180 24 8 121 39 261 AOE 4 | . . . . . . . . . . 1 . 3 Critical Strikes 59 | . . 5 3 5 1 . 2 5 . 10 . 28 Part Disruptions 6 | . . . . . . . . . . 1 . 5 Damage Taken 18042 | . 114 1368 1530 997 916 485 2505 624 207 2784 890 5622 Core 2550 | . 24 211 170 101 55 24 253 54 23 388 96 1151 Absorbed by Shields 345 | . . . . . . . 225 95 . 9 . 16 Redirected to Shielding 7 | . . 7 . . . . . . . . . . Regen/Repaired (Parts) 980 | . . 214 25 . 34 272 190 6 . 42 . 197 Core Remaining (%) 69 | 100 90 47 69 . 77 . . . . 12 90 . Volleys Fired 554 | 6 23 80 77 57 39 33 53 20 15 50 14 87 Largest 4 | 2 2 2 3 3 3 3 3 3 3 3 3 4 Hottest 383 | 40 40 65 194 131 131 120 196 190 167 105 195 383 Shots Fired 1339 | 12 46 160 223 167 118 71 123 49 39 136 28 167 Gun 993 | 12 46 159 214 166 97 . 55 42 39 66 11 86 Cannon 314 | . . . 2 . 20 67 54 5 . 70 16 80 Launcher 31 | . . 1 7 1 1 4 14 2 . . . 1 Special 1 | . . . . . . . . . . . 1 . Kinetic 791 | 12 46 157 119 109 77 67 56 19 18 66 11 34 Thermal 506 | . . . 97 57 40 . 53 28 21 70 12 128 Explosive 24 | . . . 1 1 1 4 14 2 . . . 1 Electromagnetic 18 | . . 3 6 . . . . . . . 5 4 Robot Hit Streak 32 | 1 7 11 16 18 13 4 10 6 8 15 24 32 Robot Miss Streak 8 | . 2 4 4 5 4 8 5 2 3 6 1 8 Penetration Max 1 | . . . . . . . 1 . . 1 . 1 Secondary Targets 10 | . . . 3 4 . . . 2 . 1 . . Max Gunslinging Chain 1 | . . . 1 1 . . . 1 . 1 . . Shots Hit Robots 850 | 1 31 108 134 107 73 29 78 21 17 81 37 133 Core Hits 483 | 1 12 50 61 46 34 34 107 25 8 35 18 52 Critical Kills 6 | . . . . 2 . . 1 . . . . 3 Critical Parts Destroyed 5 | . . 1 . 1 . . 3 . . . . . Critical Strikes 67 | . . 1 4 6 6 2 16 3 1 1 2 25 Burn 36 | . . . 4 3 5 . 8 2 1 . . 13 Destroy 13 | . . 1 . 3 . . 4 . . 1 . 4 Blast 12 | . . . . . 1 2 3 1 . . . 5 Corrupt 1 | . . . . . . . . . . . . 1 Sever 5 | . . . . . . . 1 . . . 2 2 Melee Attacks 70 | . . . . 1 . . 6 . . . 31 32 Impact . | . . . . . . . . . . . . . Slashing 70 | . . . . 1 . . 6 . . . 31 32 Piercing . | . . . . . . . . . . . . . Sneak Attacks 7 | . . . . . . . 1 . . . 2 4 Combat Hostiles . | . . . . . . . . . . . . . Follow-up Attacks . | . . . . . . . . . . . . . Damage Inflicted 26658 | 14 362 1605 3399 2297 1800 1818 5214 833 374 2360 1499 5083 Guns 11533 | 14 362 1479 2364 1998 1156 . 898 365 374 894 166 1463 Cannons 6202 | . . . . . 324 737 878 105 . 1466 412 2280 Explosions 7075 | . . 126 1035 299 320 1081 3205 363 . . . 646 Melee 1848 | . . . . . . . 233 . . . 921 694 Ramming . | . . . . . . . . . . . . . Kinetic 9062 | 14 362 1449 1121 1308 960 737 895 201 135 894 166 820 Thermal 9011 | . . 18 1702 690 520 . 881 269 239 1466 338 2888 Explosive 6260 | . . . 346 299 320 1081 3205 363 . . . 646 Electromagnetic 477 | . . 138 230 . . . . . . . 74 35 Impact . | . . . . . . . . . . . . . Slashing 1848 | . . . . . . . 233 . . . 921 694 Piercing . | . . . . . . . . . . . . . Highest Corruption 29 | . 2 . 5 1 1 . 10 10 10 29 1 19 Average Corruption 6 | . 2 . 5 1 1 . 9 10 10 10 1 7 Corruption Purged . | . . . . . . . . . . . . . Corruption Blocked . | . . . . . . . . . . . . . Effects 245 | . 5 . 32 6 12 . 46 13 14 51 . 66 Message Errors 55 | . 1 . 7 2 4 . 8 4 4 11 . 14 Matter Fused 57 | . . . 9 . 1 . 9 2 4 14 . 18 Heat Flow Errors 31 | . 2 . 2 2 1 . 7 . 1 8 . 8 Energy Discharges 26 | . 1 . 7 1 1 . 4 . 1 3 . 8 Parts Rejected 5 | . . . . . 1 . 2 1 . . . 1 Parts Fused 4 | . . . 1 . . . 1 1 . . . 1 Data Loss (minor) 33 | . . . 4 1 2 . 7 2 1 7 . 9 Data Loss (major) 8 | . 1 . 1 . . . 2 1 . 1 . 2 Misfires 8 | . . . . . 1 . 3 1 . 2 . 1 Alerts 6 | . . . . . 1 . 1 1 1 1 . 1 Misdirections 3 | . . . . . . . . . 1 . . 2 Weapon Failures 9 | . . . 1 . . . 2 . 1 4 . 1 Overload Shots . | . . . . . . . . . . . . . Overflow Damage 432 | . . . 44 3 . 21 22 . . 3 101 238 Projectiles 174 | . . . . . . 1 . . . 3 32 138 Explosions 189 | . . . 44 3 . 20 22 . . . . 100 Melee 69 | . . . . . . . . . . . 69 . Knockbacks 25 | . . . . . 2 2 11 . . . . 10 Impact . | . . . . . . . . . . . . . Kinetic 23 | . . . . . 2 2 11 . . . . 8 Secondary 2 | . . . . . . . . . . . . 2 Self-Inflicted Damage 300 | . . 8 24 . 32 53 55 11 . . . 117 Shots 14 | . . 1 2 . 1 4 3 1 . . . 2 Rammed . | . . . . . . . . . . . . . Targets Rammed . | . . . . . . . . . . . . . Kicked . | . . . . . . . . . . . . . Crushed . | . . . . . . . . . . . . . Highest Temperature 442 | . 183 20 431 265 442 350 409 61 263 253 105 367 Average Temperature 100 | . 88 4 88 67 161 136 125 18 53 103 55 70 Received Heat Transfer 3509 | . 18 393 540 441 318 144 544 110 18 162 81 740 Effects 14 | . . . 1 . 6 3 3 . 1 . . . Shutdowns 3 | . . . . . 3 . . . . . . . Energy Bleed 3 | . . . 1 . 1 1 . . . . . . Interference 4 | . . . . . . . 3 . 1 . . . Damage (minor) 4 | . . . . . 2 2 . . . . . . Siege Activations . | . . . . . . . . . . . . . Martial Activations . | . . . . . . . . . . . . . Shielding Activations . | . . . . . . . . . . . . . Robots Disrupted . | . . . . . . . . . . . . . Combat Hostiles . | . . . . . . . . . . . . . Robots Corrupted . | . . . . . . . . . . . . . Combat Hostiles . | . . . . . . . . . . . . . Parts Fried 1 | . . . 1 . . . . . . . . . Impact Corruptions . | . . . . . . . . . . . . . Robots Melted 3 | . . . . . . . . 1 . . . 2 Combat Hostiles 3 | . . . . . . . . 1 . . . 2 Parts Melted 34 | . . . 7 1 1 . 3 3 . 5 . 14 Heat Transferred 17072 | . . 50 3125 1480 1332 . 2072 629 518 2250 333 5283 Parts Sabotaged . | . . . . . . . . . . . . . Parts Stolen . | . . . . . . . . . . . . . Parts Stripped . | . . . . . . . . . . . . . Power Chain Reactions 2 | . . 1 1 . . . . . . . . . Alert | -11 -10 -9 -8 -7 -7 -6 -6 -6 -6 -6 -5 -4 ------- Run | Yrd Mat Mat Mat Fac Sto Fac Ext Cet Arc Hub Fac Fac Maximum Alert Level 2 | . . . 1 1 1 1 2 2 1 2 . 2 Low Security (%) 68 | 100 100 100 39 58 79 78 66 . 70 31 100 66 Level 1 29 | . . . 60 41 20 21 27 87 29 60 . 30 Level 2 2 | . . . . . . . 6 12 . 7 . 3 Level 3 . | . . . . . . . . . . . . . Level 4 . | . . . . . . . . . . . . . Level 5 . | . . . . . . . . . . . . . High Security . | . . . . . . . . . . . . . Max Security . | . . . . . . . . . . . . . Peak Influence 693 | 5 70 182 384 270 260 386 693 412 233 446 171 429 Initial 374 | . . . 71 166 105 46 184 374 140 55 171 17 Average 142 | . 14 38 237 154 126 102 209 375 188 237 40 135 Influence Increases 7815 | 5 146 654 888 643 438 565 1467 258 179 1011 364 1197 Destroy 0b10 Robot/C 4120 | . 100 420 500 420 240 240 800 140 80 460 200 520 Destroy 0b10 Robot/NC 350 | 5 20 55 50 20 40 20 30 5 10 35 20 40 Destroy Leader 924 | . 26 142 116 94 80 54 104 10 . 148 36 114 Allied During Kill 474 | . . . . . . . 228 46 58 142 . . Successful Hack 236 | . . 14 10 24 6 37 23 15 . 32 24 51 Select Force Hacks 30 | . . . . 30 . . . . . . . . Disable Machine 405 | . . . 60 . 15 45 30 15 30 45 15 150 Destroy Structure 511 | . . 8 32 25 42 64 117 27 1 29 24 142 Partial Spotted 105 | . . . . . . 30 . . . 45 15 15 Lose Combat Pursuer 660 | . . 15 120 30 15 75 135 . . 75 30 165 Influence Decreases 7467 | 5 146 484 691 777 568 290 1176 575 372 820 678 885 Entered New Map 1488 | . . . 99 201 128 57 194 295 212 104 179 19 Time Decay 4499 | 5 146 434 522 556 410 233 542 180 140 486 429 416 Lost Part 1070 | . . 50 70 20 20 . 140 80 20 150 70 450 Lost Ally 410 | . . . . . 10 . 300 20 . 80 . . Squads Dispatched 55 | . 1 6 3 9 3 4 3 1 . 10 3 12 Investigation 13 | . . 3 1 3 . 1 2 1 . 1 . 1 Extermination 18 | . . . . 5 1 3 . . . 1 2 6 Reinforcement 21 | . 1 3 2 1 2 . 1 . . 5 1 5 Assault 2 | . . . . . . . . . . 2 . . Garrison 1 | . . . . . . . . . . 1 . . Intercept . | . . . . . . . . . . . . . Searches Triggered . | . . . . . . . . . . . . . Construction Impeded 2 | . . . . . . . 1 . . 1 . . Haulers Reinforced 4 | . . . . 1 1 . . . . 1 . 1 Active Scanning Responses . | . . . . . . . . . . . . . Cargo Convoy Interrupts 1 | . . . . . . . . . . . 1 . Stealth | -11 -10 -9 -8 -7 -7 -6 -6 -6 -6 -6 -5 -4 --------- Run | Yrd Mat Mat Mat Fac Sto Fac Ext Cet Arc Hub Fac Fac Distress Signals 18 | . . 1 5 1 1 . 1 1 . 2 3 3 Communications Jammed . | . . . . . . . . . . . . . Distress Signals . | . . . . . . . . . . . . . Times Spotted 330 | . 9 31 50 27 17 16 52 10 13 41 17 47 Peak Tracking Total 9 | . 3 5 8 5 6 4 7 5 2 9 3 9 Tactical Retreats 30 | . . 1 4 2 1 2 6 . . 3 2 9 Traps | -11 -10 -9 -8 -7 -7 -6 -6 -6 -6 -6 -5 -4 ------- Run | Yrd Mat Mat Mat Fac Sto Fac Ext Cet Arc Hub Fac Fac Traps Triggered 12 | . 1 2 . 2 1 . 2 . . 2 1 1 Indirectly 1 | . . 1 . . . . . . . . . . Trap Hack Attempts . | . . . . . . . . . . . . . Triggered . | . . . . . . . . . . . . . Disarmed . | . . . . . . . . . . . . . Reprogrammed . | . . . . . . . . . . . . . Reused . | . . . . . . . . . . . . . Traps Extracted . | . . . . . . . . . . . . . Installed . | . . . . . . . . . . . . . Triggered . | . . . . . . . . . . . . . Machines | -11 -10 -9 -8 -7 -7 -6 -6 -6 -6 -6 -5 -4 ---------- Run | Yrd Mat Mat Mat Fac Sto Fac Ext Cet Arc Hub Fac Fac Machines Disabled 31 | . . . 4 . 1 3 4 3 2 3 1 10 Max in Single Turn 4 | . . . 2 . 1 1 1 1 1 1 1 4 Garrison Access 3 | . . . 1 . . . . . . 1 1 . Network Hub 2 | . . . . . . . . . . 2 . . Machines Repaired . | . . . . . . . . . . . . . Machines Dismantled . | . . . . . . . . . . . . . Machines Sabotaged . | . . . . . . . . . . . . . Overloaded Fab Kills . | . . . . . . . . . . . . . Hacking | -11 -10 -9 -8 -7 -7 -6 -6 -6 -6 -6 -5 -4 --------- Run | Yrd Mat Mat Mat Fac Sto Fac Ext Cet Arc Hub Fac Fac Machines Accessed 85 | . 4 6 9 9 5 10 11 3 1 9 9 9 Terminals 56 | . 4 5 5 7 4 4 10 3 . 8 2 4 Fabricators 4 | . . . . 1 . 1 . . . . 1 1 Repair Stations 7 | . . 1 1 . . 1 . . . . 2 2 Recycling Units 10 | . . . . 1 1 2 1 . . . 3 2 Scanalyzers 3 | . . . 2 . . 1 . . . . . . Garrison Access 4 | . . . 1 . . 1 . . . 1 1 . Total Hacks 280 | . 8 25 32 36 8 27 22 9 25 19 30 39 Successful 138 | . . 18 21 15 5 12 11 2 25 8 9 12 Failed 141 | . 8 7 11 21 3 15 11 7 . 11 20 27 Catastrophic 32 | . 2 2 2 4 . 3 1 2 . 5 3 8 Database Lockouts 1 | . . . . . . . . . . . 1 . Manual 104 | . 7 10 6 24 2 10 4 1 . 12 14 14 Terminals 163 | . 8 16 16 28 6 10 21 9 . 18 9 22 Fabricators 11 | . . . . 5 . 1 . . . . 1 4 Repair Stations 37 | . . 9 2 . . 5 . . . . 11 10 Recycling Units 19 | . . . . 3 2 4 1 . . . 6 3 Scanalyzers 17 | . . . 13 . . 4 . . . . . . Garrison Access 8 | . . . 1 . . 3 . . . 1 3 . Terminal Hacks 76 | . . 8 5 9 3 2 8 2 25 7 1 6 Record 27 | . . . . . . . . 1 25 . 1 . Part Schematic 2 | . . . . 1 . . . . . . . 1 Prototype ID Bank 2 | . . 2 . . . . . . . . . . Open Door 11 | . . . . . 3 . 7 1 . . . . Level Access Points 2 | . . 1 . . . . . . . 1 . . Branch Access Points 2 | . . . 1 . . . . . . . . 1 Terminal Index 3 | . . . . 1 . 1 . . . 1 . . Garrison Index 1 | . . . . . . 1 . . . . . . Alert Level 11 | . . 1 1 3 . . 1 . . 3 . 2 Maintenance Status 1 | . . . . . . . . . . 1 . . Transport Status 2 | . . 2 . . . . . . . . . . Recall Investigation 2 | . . . 1 1 . . . . . . . . Recall Extermination 2 | . . . . 2 . . . . . . . . Recall Reinforcements 1 | . . 1 . . . . . . . . . . Hauler Manifests 2 | . . 1 . . . . . . . . . 1 Registered Components 3 | . . . 1 1 . . . . . 1 . . Zone Layout 2 | . . . 1 . . . . . . . . 1 Fabricator Hacks 5 | . . . . 2 . 1 . . . . 1 1 Network Status 2 | . . . . . . 1 . . . . 1 . Load Schematic 2 | . . . . 1 . . . . . . . 1 Build 1 | . . . . 1 . . . . . . . . Repair Station Hacks 20 | . . 8 2 . . 4 . . . . 2 4 Scan Component 11 | . . 4 1 . . 2 . . . . 2 2 Repair 9 | . . 4 1 . . 2 . . . . . 2 Recycling Unit Hacks 13 | . . . . 2 2 3 1 . . . 4 1 Process 1 | . . . . . . 1 . . . . . . Report Inventory 8 | . . . . 1 1 1 1 . . . 3 1 Retrieve Matter 1 | . . . . . . 1 . . . . . . Retrieve Components 3 | . . . . 1 1 . . . . . 1 . Scanalyzer 14 | . . . 13 . . 1 . . . . . . Insert Component 7 | . . . 6 . . 1 . . . . . . Analyze 7 | . . . 7 . . . . . . . . . Garrison Access Hacks 2 | . . . 1 . . . . . . . 1 . Seal Access 2 | . . . 1 . . . . . . . 1 . Unauthorized Hacks 8 | . . 2 . 2 . 1 2 . . 1 . . Terminals 6 | . . 2 . 1 . . 2 . . 1 . . Botnet 3 | . . 1 . . . . 2 . . . . . Operators 3 | . . 1 . 1 . . . . . 1 . . Fabricators . | . . . . . . . . . . . . . Repair Stations . | . . . . . . . . . . . . . Recycling Units 2 | . . . . 1 . 1 . . . . . . Monitor 1 | . . . . . . 1 . . . . . . Tunnel 1 | . . . . 1 . . . . . . . . Scanalyzers . | . . . . . . . . . . . . . Garrison Access . | . . . . . . . . . . . . . Data Cores Recovered . | . . . . . . . . . . . . . Used . | . . . . . . . . . . . . . Hacking Detections 63 | . 4 4 7 8 1 9 6 3 . 7 5 9 Full Trace Events 10 | . . 1 2 1 . 1 2 1 . 1 . 1 Feedback Events 1 | . . . . . . . 1 . . . . . Corruption 1 | . . . . . . . 1 . . . . . Feedback Blocked . | . . . . . . . . . . . . . Robot Schematics Acquired . | . . . . . . . . . . . . . Robots Built . | . . . . . . . . . . . . . Authchips . | . . . . . . . . . . . . . Time . | . . . . . . . . . . . . . Total Robot Build Rating . | . . . . . . . . . . . . . Part Schematics Acquired 8 | . . . 6 1 . . . . . . . 1 Parts Built 2 | . . . . 2 . . . . . . . . Authchips . | . . . . . . . . . . . . . Time 42 | . . . . 42 . . . . . . . . Total Part Build Rating 8 | . . . . 8 . . . . . . . . Parts Repaired 9 | . . 4 1 . . 2 . . . . . 2 Time 293 | . . 110 38 . . 110 . . . . . 35 Parts Recycled . | . . . . . . . . . . . . . Recycled Matter 14 | . . . . . . 14 . . . . . . Retrieved Matter 14 | . . . . . . 14 . . . . . . Retrieved Components 15 | . . . . 9 3 . . . . . 3 . Parts Scanalyzed 7 | . . . 6 . . 1 . . . . . . Part Schematics Acquired 6 | . . . 6 . . . . . . . . . Parts Damaged . | . . . . . . . . . . . . . Bothacking | -11 -10 -9 -8 -7 -7 -6 -6 -6 -6 -6 -5 -4 ------------ Run | Yrd Mat Mat Mat Fac Sto Fac Ext Cet Arc Hub Fac Fac Used RIF Installer . | . . . . . . . . . . . . . Robots Hacked . | . . . . . . . . . . . . . Non-combat . | . . . . . . . . . . . . . Combat . | . . . . . . . . . . . . . Robot Hacks Applied . | . . . . . . . . . . . . . Relay Couplers Released 3 | . . . . . . . . . . 3 . . Machine Destruction 3 | . . . . . . . . . . 3 . . Fabnet Peak Effective % . | . . . . . . . . . . . . . Robots Rewired 14 | . . . . . . . 14 . . . . . Allies Hacked . | . . . . . . . . . . . . . Hacks Repelled . | . . . . . . . . . . . . . Allies | -11 -10 -9 -8 -7 -7 -6 -6 -6 -6 -6 -5 -4 -------- Run | Yrd Mat Mat Mat Fac Sto Fac Ext Cet Arc Hub Fac Fac Total Allies 27 | . . . . . . . 24 3 . . . . Largest Group 8 | . . . . . . . 8 6 5 4 . . Highest-Rated Group 488 | . . . . . . . 311 488 392 249 . . Highest-Rated Ally 159 | . . . . . . . 159 159 143 96 . . Total Orders 8 | . . . . . 4 1 3 . . . . . STAY 1 | . . . . . . . 1 . . . . . FOLLOW 1 | . . . . . . . 1 . . . . . AID 1 | . . . . . . . 1 . . . . . EXPLORE 4 | . . . . . 3 1 . . . . . . RETURN 1 | . . . . . 1 . . . . . . . Ally Attacks 241 | . . . . . . . 119 59 19 44 . . Total Damage 5612 | . . . . . . . 2385 1206 639 1382 . . Kills 40 | . . . . . . . 20 5 4 11 . . Allies Corrupted . | . . . . . . . . . . . . . Allies Melted 1 | . . . . 1 . . . . . . . . Intel | -11 -10 -9 -8 -7 -7 -6 -6 -6 -6 -6 -5 -4 ------- Run | Yrd Mat Mat Mat Fac Sto Fac Ext Cet Arc Hub Fac Fac Active Infowar (turns) 8850 | 13 564 650 . . . 486 1551 370 297 1265 1450 2204 Optics 7042 | . . . . . . 486 1551 370 297 1265 1450 1623 Sensors 3089 | . . . . . . . . . . 25 1333 1731 Terrain 1948 | 13 564 650 . . . . . . . . . 721 Traps 21 | . . . . . . . . . . . 21 . Robot Analysis Total . | . . . . . . . . . . . . . Derelict Logs Recovered . | . . . . . . . . . . . . . Drone Launches 4 | . . . . . 3 1 . . . . . . Drone Recoveries 3 | . . . . . 2 1 . . . . . . Exploration | -11 -10 -9 -8 -7 -7 -6 -6 -6 -6 -6 -5 -4 ------------- Run | Yrd Mat Mat Mat Fac Sto Fac Ext Cet Arc Hub Fac Fac Turns Passed 14991 | 138 564 1736 1453 1852 992 769 1551 370 297 1265 1450 2554 Spaces Moved 9448 | 71 226 518 471 738 344 978 1598 237 182 852 1420 1813 Core 429 | 5 . . . . . . . . . 57 202 165 Treads 2415 | 62 226 518 471 738 344 13 . . 10 33 . . Legs 1983 | . . . . . . . 218 237 172 652 224 480 Wheels 4 | 4 . . . . . . . . . . . . Hover 3623 | . . . . . . 965 1380 . . 110 . 1168 Flight 994 | . . . . . . . . . . . 994 . Fastest Speed 22 | 50 160 240 235 155 155 40 54 120 120 34 22 40 Average Speed 113 | 147 209 240 236 220 233 43 70 120 126 109 59 86 Slowest Speed 400 | 160 320 240 240 235 240 156 190 120 240 240 220 400 Overloaded Moves . | . . . . . . . . . . . . . Propulsion Burnouts . | . . . . . . . . . . . . . Robots Hopped . | . . . . . . . . . . . . . Potential Cave-ins 11 | . . . . . . . 11 . . . . . Cave-ins Triggered . | . . . . . . . . . . . . . Exploration Rate (%) 51 | 5 48 51 45 18 57 25 95 90 98 67 34 38 Regions Visited 12 Branch Regions 5 Pre-discovered Areas 2 | . . . . 1 1 . . . . . . . Known Exits Taken 3 | . . 1 . . . . . . . 1 1 . Unknown Exits Taken 9 | 1 1 . 1 1 1 1 1 1 1 . . . Scrap Searched . | . . . . . . . . . . . . . Spaces Dug 71 | . . . . 1 . 9 . . . 9 12 40 Terrain Destroyed 581 | . . 5 48 29 47 101 178 64 . 19 15 75 Melee 26 | . . . . 1 . . . . . . 10 15 Projectile 80 | . . . . . 4 23 12 1 . 19 5 16 AOE 475 | . . 5 48 28 43 78 166 63 . . . 44 Terrain Rammed . | . . . . . . . . . . . . . Walls Destroyed . | . . . . . . . . . . . . . Machines Disabled . | . . . . . . . . . . . . . Actions | -11 -10 -9 -8 -7 -7 -6 -6 -6 -6 -6 -5 -4 --------- Run | Yrd Mat Mat Mat Fac Sto Fac Ext Cet Arc Hub Fac Fac Total 12575 | 90 273 851 687 888 469 1270 1902 281 218 1084 1958 2604 Wait 1662 | . 14 185 61 27 37 194 103 12 11 83 407 528 Move 9436 | 70 225 517 470 737 343 977 1597 236 181 851 1419 1813 Hop . | . . . . . . . . . . . . . Pick Up 160 | 5 6 26 19 18 8 18 10 2 5 8 16 19 Fast Attach 168 | 8 . 8 10 4 9 6 17 3 2 32 24 45 Attach 80 | . . 7 9 4 2 7 8 6 1 5 11 20 Detach 43 | 1 . . 5 1 . 2 4 1 . 9 8 12 Swap 112 | . 2 12 13 13 11 12 22 1 2 3 7 14 Drop 206 | . 3 16 23 26 19 21 19 . 1 31 21 26 Fire 554 | 6 23 80 77 57 39 33 53 20 15 50 14 87 Melee 70 | . . . . 1 . . 6 . . . 31 32 Ram . | . . . . . . . . . . . . . Kick . | . . . . . . . . . . . . . Crush . | . . . . . . . . . . . . . Escape Stasis 20 | . . . . . . . . . . 12 . 8 Rewire 64 | . . . . . 1 . 63 . . . . . Trap . | . . . . . . . . . . . . . Miscellaneous . | . . . . . . . . . . . . . Route ------- -11/Scrapyard -10/Materials (discovered 3 exits: *Mat x2 / [*Min]) -9/Materials (discovered 4 exits: *Mat x3 / [*Min]) -8/Materials -7/Factory (discovered 3 exits: *Sto x2 / [*Low]) -7/Storage -6/Factory (discovered 2 exits: *Fac / *Ext) -6/Extension (discovered 2 exits: *Fac / *Cet) -6/Cetus (discovered 2 exits: *Fac / *Arc) -6/Archives (discovered 3 exits: *Fac / *Hub x2) -6/Hub_04(d) (discovered 4 exits: *Fac x4) -5/Factory (discovered 3 exits: *Fac x2 / [*Upp]) -4/Factory (discovered 4 exits: [*Res] / *Upp x2 / Arm) History --------- Turn | Location | Event 10 | -11/Scrapyard | Discovered new exit (range 15) 139 | -11/Scrapyard | Entered Materials 297 | -10/Materials | Discovered new exit (range 12) 300 | -10/Materials | Build established: Mutant 519 | -10/Materials | Discovered new exit (range 13) 572 | -10/Materials | Discovered new exit (range 13) 703 | -10/Materials | Entered another Materials area 703 | -9/Materials | Evolved 2 slots: Propulsion x1, Utility x1 1069 | -9/Materials | Repaired Hvy. Assault Rifle 1097 | -9/Materials | Repaired Lgt. Treads 1124 | -9/Materials | Repaired Assault Rifle 1145 | -9/Materials | Build established: Scavenger-Mutant 1152 | -9/Materials | Repaired Lgt. Treads 1380 | -9/Materials | Discovered new exit (range 7) 1762 | -9/Materials | Build established: Mutant 2128 | -9/Materials | Identified exit to Materials 2269 | -9/Materials | Core integrity fell below 50% 2439 | -9/Materials | Entered another Materials area 2439 | -8/Materials | Evolved 2 slots: Utility x1, Weapon x1 2675 | -8/Materials | Lost 4 parts (1n2u1w) 2953 | -8/Materials | Build established: Scavenger-Tank 3195 | -8/Materials | Destroyed 7 combat bots 3473 | -8/Materials | Repaired Lgt. Nuclear Core 3584 | -8/Materials | Found Prototype Launcher 3584 | -8/Materials | Identified Rocket Array 3590 | -8/Materials | Found Rocket Array 3593 | -8/Materials | Found Faulty Rocket Array 3607 | -8/Materials | Found Rocket Array 3661 | -8/Materials | Discovered new exit (range 5) 3892 | -8/Materials | Entered Factory 3892 | -7/Factory | Evolved 2 slots: Utility x2 4044 | -7/Factory | Discovered new exit (range 15) 4199 | -7/Factory | Build established: Hacker-Gunner 4466 | -7/Factory | Discovered new exit (range 5) 4757 | -7/Factory | Allied Derelicts emerged from ambush trap array 4829 | -7/Factory | Lost 3 allies 5245 | -7/Factory | Fabricated Gravmag System? 5364 | -7/Factory | Build established: Scavenger-Gunner 5611 | -7/Factory | Discovered new exit (range 15) 5744 | -7/Factory | Entered Storage 6132 | -7/Storage | Learned location of Armory (-4) 6372 | -7/Storage | Found Prototype Protection 6372 | -7/Storage | Identified Lgt. Regenerative Plating 6403 | -7/Storage | Found Prototype Launcher 6403 | -7/Storage | Identified Scatter Rocket Array 6527 | -7/Storage | Build established: Hacker-Gunner 6697 | -7/Storage | Discovered new exit (range 6) 6736 | -7/Storage | Entered Factory 6736 | -6/Factory | Evolved 2 slots: Propulsion x2 6841 | -6/Factory | Repaired Drone Bay 6903 | -6/Factory | Repaired Adv. Beam Rifle 7374 | -6/Factory | Discovered new exit (range 14) 7486 | -6/Factory | Discovered new exit (range 19) 7505 | -6/Factory | Entered Extension 7550 | -6/Extension | Spotted B-75 Beast 7668 | -6/Extension | Rescued a captive Derelict 7668 | -6/Extension | Rescued a captive Derelict 7728 | -6/Extension | Rescued a captive Derelict 7728 | -6/Extension | Rescued a captive Derelict 7815 | -6/Extension | Lost 3 allies 7868 | -6/Extension | Rescued a captive Derelict 7915 | -6/Extension | Rescued a captive Derelict 7916 | -6/Extension | Rescued a captive Derelict 7921 | -6/Extension | Spotted B-75 Beast 7974 | -6/Extension | Destroyed B-75 Beast 8005 | -6/Extension | Lost 8 allies 8008 | -6/Extension | Lost 5 parts (1p1u3w) 8113 | -6/Extension | Destroyed B-75 Beast 8341 | -6/Extension | Build established: Scavenger-Gunner 8405 | -6/Extension | Disrupted transfer network 8406 | -6/Extension | Rescued a captive Derelict 8456 | -6/Extension | Rescued a captive Derelict 8630 | -6/Extension | Lost 4 allies 8718 | -6/Extension | System corruption reached 10% 8890 | -6/Extension | Rescued A7 8978 | -6/Extension | Discovered new exit (range 10) 8979 | -6/Extension | Disrupted transfer network 8979 | -6/Extension | Discovered new exit (range 6) 9056 | -6/Extension | Entered Cetus 9056 | -6/Cetus | Accompanied by 4 allies (A7) 9061 | -6/Cetus | Acquired a Cetus Manufacturing Module code from A7 9070 | -6/Cetus | Spotted Cetus Guard 9070 | -6/Cetus | Spotted Cetus Guard 9073 | -6/Cetus | Spotted Cetus Guard 9073 | -6/Cetus | Spotted Cetus Guard 9089 | -6/Cetus | Destroyed Cetus Guard 9092 | -6/Cetus | Allies destroyed Cetus Guard 9106 | -6/Cetus | Destroyed Cetus Guard 9106 | -6/Cetus | Allies destroyed Cetus Guard 9111 | -6/Cetus | Lost 3 allies 9135 | -6/Cetus | Lost 7 parts (2n1u4w) 9143 | -6/Cetus | Discovered new exit (range 21) 9279 | -6/Cetus | Discovered new exit (range 21) 9295 | -6/Cetus | Escorted A7 to Cetus Mainframe 9338 | -6/Cetus | Started Cetus Manufacturing Module 9363 | -6/Cetus | Manufactured an Enhanced Grunt 9388 | -6/Cetus | Manufactured an Enhanced Grunt 9413 | -6/Cetus | Manufactured an Enhanced Grunt 9426 | -6/Cetus | Entered Archives 9426 | -6/Archives | Accompanied by 5 allies (A7) 9431 | -6/Archives | Received a hacking code to weaken MAIN.C 9478 | -6/Archives | Discovered new exit (range 21) 9496 | -6/Archives | Discovered new exit (range 17) 9533 | -6/Archives | Unable to access archive contents 9546 | -6/Archives | Unable to access archive contents 9552 | -6/Archives | Discovered new exit (range 22) 9558 | -6/Archives | Unable to access archive contents 9642 | -6/Archives | Unable to access archive contents 9642 | -6/Archives | Unable to access archive contents 9723 | -6/Archives | Entered Hub_04(d) 9723 | -6/Hub_04(d) | Accompanied by 4 allies 9839 | -6/Hub_04(d) | Discovered new exit (range 21) 10111 | -6/Hub_04(d) | Discovered new exit (range 21) 10229 | -6/Hub_04(d) | Found Prototype Processor 10229 | -6/Hub_04(d) | Identified Exp. Targeting Computer 10232 | -6/Hub_04(d) | Found Exp. Targeting Computer 10235 | -6/Hub_04(d) | Found Exp. Targeting Computer 10292 | -6/Hub_04(d) | Found Prototype Device 10292 | -6/Hub_04(d) | Identified Exp. Thermal Shield 10583 | -6/Hub_04(d) | Core integrity fell below 50% 10784 | -6/Hub_04(d) | Identified exit to Factory 10824 | -6/Hub_04(d) | Garrison activated, responded to threat 10902 | -6/Hub_04(d) | Network Hub disabled 10903 | -6/Hub_04(d) | Spotted Lightning 10904 | -6/Hub_04(d) | Spotted Lightning 10906 | -6/Hub_04(d) | Network Hub disabled 10911 | -6/Hub_04(d) | Spotted B-75 Beast 10911 | -6/Hub_04(d) | Spotted Lightning 10930 | -6/Hub_04(d) | Spotted Lightning 10930 | -6/Hub_04(d) | Spotted Lightning 10930 | -6/Hub_04(d) | Spotted Lightning 10965 | -6/Hub_04(d) | Core integrity fell below 20% 10988 | -6/Hub_04(d) | Entered Factory 10988 | -5/Factory | Evolved 2 slots: Utility x2 10997 | -5/Factory | Lost 12 parts (6n4u2w) 11496 | -5/Factory | Build established: Scout 11733 | -5/Factory | Discovered new exit (range 15) 11881 | -5/Factory | Discovered new exit (range 15) 11884 | -5/Factory | Identified exit to Factory 11895 | -5/Factory | Discovered exit to Factory (range 4) 12158 | -5/Factory | Central database locked down 12301 | -5/Factory | Cargo convoy interrupted 12328 | -5/Factory | Build established: Scavenger-Skirmisher 12438 | -5/Factory | Entered another Factory area 12438 | -4/Factory | Evolved 2 slots: Utility x1, Weapon x1 12465 | -4/Factory | Lost 4 parts (2n1u1w) 12940 | -4/Factory | Lost 4 parts (3n1u) 13574 | -4/Factory | Destroyed 8 combat bots 13583 | -4/Factory | Lost 11 parts (1p3n4u3w) 13851 | -4/Factory | Lost 4 parts (2n2w) 14061 | -4/Factory | Repaired Imp. Sensor Array 14138 | -4/Factory | Spotted B-86 Titan 14193 | -4/Factory | Lost 4 parts (1p2n1w) 14438 | -4/Factory | Identified exit to Upper Caves 14438 | -4/Factory | Identified exit to Armory 14477 | -4/Factory | Discovered new exit (range 22) 14500 | -4/Factory | Repaired Hrd. Light Armor Plating 14540 | -4/Factory | Build established: Scavenger-Scout 14761 | -4/Factory | System corruption reached 10% 14807 | -4/Factory | Lost 7 parts (1p4n1u1w) 14843 | -4/Factory | Core integrity fell below 50% 14885 | -4/Factory | Core integrity fell below 20% 14927 | -4/Factory | Lost 14 parts (5n6u3w) 14992 | -4/Factory | Destroyed by P-70 Sage with Tesla Rifle Last Messages --------------- 14956_ Imp. Target Analyzer destroyed. 14959_ TF Node disabled. 14959_ Adv. Signal Interpreter tumbles out of TF Node. 14961_ Acquired Adv. Signal Interpreter. 14962_ Adv. Reaction Control System destroyed. 14962_ Knocked back. 14974_ Acquired Centrium Wheel. 14984_ Triggered Stasis Trap. 14984_ A bubble of rippling energy engulfs the area. 14984_ Field strength at 94. 14984_ Field strength at 88. 14985_ Field strength at 82. 14986_ Field strength at 76. 14987_ Field strength at 70. 14988_ Field strength at 64. 14989_ Field strength at 53. 14990_ Field strength at 47. 14991_ Field strength at 41. Map ----- +----------------------------------------------------+ | ??????????????????????# #??# #?????? | | ????????????????????### #### #?????? | | ???????????????????+ #?????? | | ???????????????????######## #?????? | | ???????????????????# # #?????? | | ???????????????????# + +????? | | ???????????????????# # #######????? | | ???????????????????# ## ##??????????? | | ???????????????????# ## #???????????? | | ???????????????????# ## #???????????? | | ???????????????????# ## #???????????? | | #############/####?# ## #???????????? | | #?# + #???????????? | | #?# ## #???????????? | | ^ < #?###+##### #???????????? | | #???????### ###?????????? | | #???????# #?????????? | | ######+#########?????????# ######????? | | #?????????????????????# " #???? | | #?????????????????????# ##### #???? | | #?????????????????#???# #?????????? | | #?????????????????# ??## ##?????????? | | #?????????????????# ####p #??????????? | | #?????????????????# #??????????? | | #?????????????????+ #??????????? | | #?????????????????# @ #??????????? | | #?????????????????###+######??????????? | | ####?????????????????????????????????????? | | ?????????????????????????????????????????? | | ?????????????????????????????????????????? | | ?????????????????????????????????????????? | | ?????????????????????????????????????????? | | ?????????????????????????????????????????? | | ?????????????????????????????????????????? | | ?????????????????????????????????????????? | | ?????????????????????????????????????????? | | ?????????????????????????????????????????? | | ?????????????????????????????????????????? | | ?????????????????????????????????????????? | | ?????????????????????????????????????????? | | ?????????????????????????????????????????? | | ?????????????????????????????????????????? | | ?????????????????????????????????????????? | | ?????????????????????????????????????????? | | ?????????????????????????????????????????? | | ?????????????????????????????????????????? | | ?????????????????????????????????????????? | | ?????????????????????????????????????????? | | ?????????????????????????????????????????? | | ?????????????????????????????????????????? | +----------------------------------------------------+ Best States ------------- Heat Dissipation 146 Energy Generation 21 Energy Capacity 325 Matter Stores 300 Matter Capacity 300 Sight Range 22 Robot Scan Range 16 Terrain Scan Range 24 Terrain Scan Density 210 Base Temperature (-) 200 Armor Coverage 375 Core Shielding 20 Melee Speed Boost 20 Evasion (%) 70 Targeting Accuracy 24 Melee Accuracy 11 Target Analysis 6 Recoil Reduction 4 Offensive Hacking 20 Defensive Hacking 10 Item Schematics ----------------- Med. Storage Unit | -8/Materials | Scanalyzed System Shield | -8/Materials | Scanalyzed Cesium-ion Thruster | -8/Materials | Scanalyzed Hacking Suite | -8/Materials | Scanalyzed Nuclear Core | -8/Materials | Scanalyzed Com. Wheel | -8/Materials | Scanalyzed Gravmag System | -7/Factory | Hacked Weapon Mount | -4/Factory | Hacked Robot Schematics ------------------ None Fabricated ------------ Gravmag System | x2 | -7/Factory Repaired ---------- Hvy. Assault Rifle | 45% | -9/Materials Lgt. Treads | 52% | -9/Materials Assault Rifle | 53% | -9/Materials Lgt. Treads | 72% | -9/Materials Lgt. Nuclear Core | 50% | -8/Materials Drone Bay | 68% | -6/Factory Adv. Beam Rifle | 20% | -6/Factory Imp. Sensor Array | 9% | -4/Factory Hrd. Light Armor Plating | 1% | -4/Factory Alien Tech Used ----------------- None Achievements -------------- Main Advantage Watch This! Challenges ------------ None Game ------ Seed DisruptionSystemMediator Manual? 0 Play Time 03:40:53 Cumulative 84.2 hours Start 2025.07.29 @ 16:39:19 End 2025.07.30 @ 10:44:09 Sessions 5 Manual Loads 0 Difficulty Rogue Special Mode None Game No. 57 Rogue 57 Adventurer 0 Explorer 0 Win Type - Total 1 Types 1/0/0/0/0/0/0/0/0/0 Lore% 53 Gallery% 48 Achievement% 43 Wizard Run 0 Options --------- Layout 1 ASCII 0 Keyboard 1 Movement Numpad Keybinds 0 Fullscreen 1 Font 24/Smallcaps Map View 50x35 Zoom Use 0% Tactical HUD 1 Map Filters NONE Filters NONE Steam 1 RUN: 1b14b555-0bed-4bf4-a0f7-173ec4e1813f